Cogmind - Beta 14 @@@ ROGUE MODE // 2024.08.17 @ 17:47:14 Player: noob Result: Destroyed by G-34 Mercenary with Small Laser Performance ------------- Evolutions (0) 0 Regions Visited (4) 800 Robots Destroyed (27) 135 Value Destroyed (392) 392 Prototype IDs (0) 0 Alien Tech Used (0) 0 Bonus (-138) -138 TOTAL SCORE: 1189 Bonus ------- Friendly Fire -138 Cogmind --------- Core Integrity 0/250 Matter 236/300 Energy 123/125 System Corruption 0% Temperature Cool (7) Movement Walking (190) Ox1 Location -9/Mines Parts ------- > --- POWER (1) -------- Light Ion Engine > --- PROPULSION (2) --- Aluminum Leg > --- UTILITY (2) ------ Small Storage Unit Weapon Shielding > --- WEAPON (2) ------- Small Laser Makeshift Shrapnel Gun > --- INVENTORY (8) ---- Weapon Shielding Light Armor Plating Beamcaster Light Assault Rifle Light Assault Rifle Light Assault Rifle Light Assault Rifle Peak State ------------ > --- POWER ------------ Light Ion Engine > --- PROPULSION ------- Flight Unit Flight Unit > --- UTILITY ---------- Small Storage Unit Weapon Shielding > --- WEAPON ----------- Small Laser Makeshift Shrapnel Gun > --- INVENTORY -------- Aluminum Leg Weapon Shielding Light Armor Plating Light Assault Rifle Light Assault Rifle Light Assault Rifle Light Assault Rifle [Rating: 10] Favorites ----------- Power Light Ion Engine Engine Light Ion Engine Propulsion Aluminum Leg Treads Light Treads Leg Aluminum Leg Wheel Wheel Flight Unit Flight Unit Utility Small Storage Unit Storage Small Storage Unit Protection Light Armor Plating Weapon Light Assault Rifle Energy Gun Small Laser Ballistic Gun Light Assault Rifle Build | -11 -10 -10 -10 -9 ------- Run | Yrd Mat Min Exi Min Slots Evolved . | . . . . . Power . | . . . . . Propulsion . | . . . . . Utility . | . . . . . Weapon . | . . . . . Parts Attached 27 | 7 2 12 . 6 Power 5 | 1 1 2 . 1 Engine 5 | 1 1 2 . 1 Core . | . . . . . Reactor . | . . . . . Propulsion 10 | 3 . 4 . 3 Treads 2 | 2 . . . . Leg 5 | 1 . 3 . 1 Wheel 1 | . . 1 . . Hover . | . . . . . Flight 2 | . . . . 2 Utility 5 | 1 1 2 . 1 Device . | . . . . . Storage 1 | 1 . . . . Processor . | . . . . . Hackware . | . . . . . Protection 4 | . 1 2 . 1 Artifact . | . . . . . Weapon 7 | 2 . 4 . 1 Energy Gun 2 | 1 . 1 . . Energy Cannon . | . . . . . Ballistic Gun 5 | 1 . 3 . 1 Ballistic Cannon . | . . . . . Launcher . | . . . . . Special Weapon . | . . . . . Impact Weapon . | . . . . . Slashing Weapon . | . . . . . Piercing Weapon . | . . . . . Special Melee Weapon . | . . . . . Unidentified Prototypes . | . . . . . Parts Lost 6 | . . 3 . 3 Power . | . . . . . Propulsion 4 | . . 1 . 3 Utility 1 | . . 1 . . Weapon 1 | . . 1 . . Highest Loss Streak 2 | . . 2 . 2 To Critical Strikes . | . . . . . Average Slot Usage (%) 98 | . 98 97 100 94 Engine 13 | . 14 14 14 11 Treads 6 | . 28 1 . . Leg 20 | . . 25 28 20 Storage 14 | . 14 14 14 14 Protection 13 | . 12 13 14 14 Energy Gun 13 | . 14 13 14 14 Ballistic Gun 14 | . 14 14 14 14 Peak Build Rating 10 | 6 7 7 7 10 Average Rating 6 | 4 6 6 7 7 On Entrance 5 | . 6 7 7 7 Naked Turns . | . . . . . Heaviest Build 13 | 12 13 13 13 13 Greatest Support 40 | 20 40 40 20 20 Greatest Overweight (x) 1 | 1 . 1 . 1 Average Overweight (x) . | . . . . . Largest Inventory Capacity 8 | 8 8 8 8 8 Average Capacity 7 | 7 8 8 8 8 Most Carried 8 | 8 8 8 8 8 Average Carried 7 | 5 7 7 8 7 Final Capacity 8 | 8 8 8 8 8 Final Carried 8 | 6 8 8 8 7 Class Distribution -------------------- 100% | Mutant Dominant Class ---------------- Mutant | -10/Materials Mutant | -10/Mines Mutant | -10/Exiles Mutant | -9/Mines Resources | -11 -10 -10 -10 -9 ----------- Run | Yrd Mat Min Exi Min Matter Collected 544 | 208 184 141 . 11 Remotely . | . . . . . Salvage Created 598 | . 410 108 . 80 Parts 47 | . 27 14 . 6 Haulers Intercepted . | . . . . . Recyclers Shooed 2 | . 1 1 . . Parts Field Recycled . | . . . . . Retrieved Matter . | . . . . . Parts Self-Destructed . | . . . . . Prevented . | . . . . . Kills | -11 -10 -10 -10 -9 ------- Run | Yrd Mat Min Exi Min Combat Hostiles Destroyed 24 | . 15 6 . 3 Guns 24 | . 15 6 . 3 Classes Destroyed 4 | . 3 1 . . Worker 1 | . 1 . . . Tunneler 1 | . . 1 . . Swarmer 18 | . 9 6 . 3 Grunt 6 | . 6 . . . Thug 1 | . . . . 1 Best Kill Streak 6 | . 6 3 . 3 Combat Bots Only 5 | . 5 2 . 3 Max Kills in Single Turn 2 | . 1 1 . 2 Gunslinging 1 | . . . . 1 Exploded . | . . . . . Melee . | . . . . . Uniques/NPCs Destroyed . | . . . . . Combat | -11 -10 -10 -10 -9 -------- Run | Yrd Mat Min Exi Min Hostile Shots Fired 170 | . 78 49 . 43 Missed 46 | . 22 11 . 13 Damage Taken 1336 | . 490 292 . 554 Core 254 | . 80 48 . 126 Absorbed by Shields . | . . . . . Redirected to Shielding 83 | . 37 22 . 24 Core Remaining (%) 100 | 100 . . . . Volleys Fired 61 | . 34 22 . 5 Largest 2 | . 2 2 . 2 Hottest 70 | . 70 70 . 64 Shots Fired 117 | . 68 39 . 10 Gun 117 | . 68 39 . 10 Cannon . | . . . . . Launcher . | . . . . . Special . | . . . . . Kinetic 61 | . 34 22 . 5 Thermal 56 | . 34 17 . 5 Explosive . | . . . . . Electromagnetic . | . . . . . Robot Hit Streak 7 | . 7 3 . 4 Robot Miss Streak 5 | . 3 5 . 4 Penetration Max . | . . . . . Secondary Targets 2 | . 1 . . 1 Max Gunslinging Chain 1 | . 1 . . 1 Shots Hit Robots 58 | . 37 16 . 5 Core Hits 36 | . 23 8 . 5 Critical Kills . | . . . . . Critical Parts Destroyed . | . . . . . Critical Strikes 2 | . 1 1 . . Burn 2 | . 1 1 . . Melee Attacks . | . . . . . Impact . | . . . . . Slashing . | . . . . . Piercing . | . . . . . Sneak Attacks . | . . . . . Combat Hostiles . | . . . . . Follow-up Attacks . | . . . . . Damage Inflicted 756 | . 489 182 . 85 Guns 755 | . 489 182 . 84 Cannons . | . . . . . Explosions . | . . . . . Melee . | . . . . . Ramming 1 | . . . . 1 Kinetic 416 | . 250 105 . 61 Thermal 339 | . 239 77 . 23 Explosive . | . . . . . Electromagnetic . | . . . . . Impact . | . . . . . Slashing . | . . . . . Piercing . | . . . . . Highest Corruption . | . . . . . Average Corruption . | . . . . . Corruption Purged . | . . . . . Corruption Blocked . | . . . . . Overload Shots . | . . . . . Overflow Damage . | . . . . . Projectiles . | . . . . . Explosions . | . . . . . Melee . | . . . . . Knockbacks . | . . . . . Impact . | . . . . . Kinetic . | . . . . . Secondary . | . . . . . Self-Inflicted Damage . | . . . . . Shots . | . . . . . Rammed . | . . . . . Targets Rammed 1 | . . . . 1 Kicked 1 | . . . . 1 Crushed . | . . . . . Highest Temperature 69 | . 69 45 . 24 Average Temperature 20 | . 21 19 . 12 Received Heat Transfer 102 | . 78 . . 24 Siege Activations . | . . . . . Robots Corrupted . | . . . . . Combat Hostiles . | . . . . . Parts Fried . | . . . . . Impact Corruptions . | . . . . . Robots Melted . | . . . . . Combat Hostiles . | . . . . . Parts Melted 4 | . 3 1 . . Heat Transferred 1112 | . 777 285 . 50 Parts Sabotaged . | . . . . . Parts Stolen . | . . . . . Parts Stripped . | . . . . . Power Chain Reactions . | . . . . . Alert | -11 -10 -10 -10 -9 ------- Run | Yrd Mat Min Exi Min Peak Influence 366 | . 366 247 . 110 Initial 87 | . . 87 . . Average 106 | . 135 125 . 19 Maximum Alert Level 1 | . 1 1 . . Low Security (%) 77 | 100 63 78 . 100 Level 1 22 | . 36 21 . . Level 2 . | . . . . . Level 3 . | . . . . . Level 4 . | . . . . . Level 5 . | . . . . . High Security . | . . . . . Max Security . | . . . . . Squads Dispatched 3 | . 3 . . . Investigation 2 | . 2 . . . Extermination . | . . . . . Reinforcement 1 | . 1 . . . Assault . | . . . . . Garrison . | . . . . . Intercept . | . . . . . Searches Triggered . | . . . . . Construction Impeded . | . . . . . Haulers Reinforced . | . . . . . Active Scanning Responses . | . . . . . Cargo Convoy Interrupts . | . . . . . Stealth | -11 -10 -10 -10 -9 --------- Run | Yrd Mat Min Exi Min Distress Signals 1 | . 1 . . . Communications Jammed . | . . . . . Distress Signals . | . . . . . Times Spotted 44 | . 23 8 . 13 Peak Tracking Total 7 | . 5 3 . 7 Tactical Retreats 7 | . 3 2 . 2 Traps | -11 -10 -10 -10 -9 ------- Run | Yrd Mat Min Exi Min Traps Triggered 2 | . 2 . . . Indirectly . | . . . . . Trap Hack Attempts . | . . . . . Triggered . | . . . . . Disarmed . | . . . . . Reprogrammed . | . . . . . Reused . | . . . . . Traps Extracted . | . . . . . Installed . | . . . . . Triggered . | . . . . . Machines | -11 -10 -10 -10 -9 ---------- Run | Yrd Mat Min Exi Min Machines Disabled . | . . . . . Max in Single Turn . | . . . . . Machines Repaired . | . . . . . Machines Dismantled . | . . . . . Machines Sabotaged . | . . . . . Overloaded Fab Kills . | . . . . . Hacking | -11 -10 -10 -10 -9 --------- Run | Yrd Mat Min Exi Min Machines Accessed 2 | . 2 . . . Terminals 1 | . 1 . . . Fabricators . | . . . . . Repair Stations . | . . . . . Recycling Units 1 | . 1 . . . Scanalyzers . | . . . . . Garrison Access . | . . . . . Total Hacks 3 | . 3 . . . Successful 1 | . 1 . . . Failed 2 | . 2 . . . Catastrophic . | . . . . . Database Lockouts . | . . . . . Manual . | . . . . . Terminals 2 | . 2 . . . Fabricators . | . . . . . Repair Stations . | . . . . . Recycling Units 1 | . 1 . . . Scanalyzers . | . . . . . Garrison Access . | . . . . . Terminal Hacks . | . . . . . Fabricator Hacks . | . . . . . Repair Station Hacks . | . . . . . Recycling Unit Hacks 1 | . 1 . . . Report Inventory 1 | . 1 . . . Scanalyzer . | . . . . . Garrison Access Hacks . | . . . . . Unauthorized Hacks . | . . . . . Terminals . | . . . . . Fabricators . | . . . . . Repair Stations . | . . . . . Recycling Units . | . . . . . Scanalyzers . | . . . . . Garrison Access . | . . . . . Data Cores Recovered . | . . . . . Used . | . . . . . Hacking Detections 1 | . 1 . . . Full Trace Events . | . . . . . Feedback Events . | . . . . . Feedback Blocked . | . . . . . Robot Schematics Acquired . | . . . . . Robots Built . | . . . . . Authchips . | . . . . . Time . | . . . . . Total Robot Build Rating . | . . . . . Part Schematics Acquired . | . . . . . Parts Built . | . . . . . Authchips . | . . . . . Time . | . . . . . Total Part Build Rating . | . . . . . Parts Repaired . | . . . . . Time . | . . . . . Parts Recycled . | . . . . . Recycled Matter . | . . . . . Retrieved Matter . | . . . . . Retrieved Components . | . . . . . Parts Scanalyzed . | . . . . . Part Schematics Acquired . | . . . . . Parts Damaged . | . . . . . Bothacking | -11 -10 -10 -10 -9 ------------ Run | Yrd Mat Min Exi Min Used RIF Installer . | . . . . . Robots Hacked . | . . . . . Non-combat . | . . . . . Combat . | . . . . . Robot Hacks Applied . | . . . . . Relay Couplers Released . | . . . . . Fabnet Peak Effective % . | . . . . . Robots Rewired . | . . . . . Allies Hacked . | . . . . . Hacks Repelled . | . . . . . Allies | -11 -10 -10 -10 -9 -------- Run | Yrd Mat Min Exi Min Total Allies . | . . . . . Largest Group . | . . . . . Highest-Rated Group . | . . . . . Highest-Rated Ally . | . . . . . Total Orders . | . . . . . Ally Attacks . | . . . . . Total Damage . | . . . . . Kills . | . . . . . Allies Corrupted . | . . . . . Allies Melted . | . . . . . Intel | -11 -10 -10 -10 -9 ------- Run | Yrd Mat Min Exi Min Robot Analysis Total . | . . . . . Derelict Logs Recovered 3 | . . . . 3 Drone Launches . | . . . . . Drone Recoveries . | . . . . . Exploration | -11 -10 -10 -10 -9 ------------- Run | Yrd Mat Min Exi Min Turns Passed 2400 | 76 487 620 1018 199 Spaces Moved 1707 | 45 211 432 849 170 Core 13 | 13 . . . . Treads 252 | 31 211 10 . . Legs 1379 | 1 . 405 849 124 Wheels 17 | . . 17 . . Hover . | . . . . . Flight 46 | . . . . 46 Fastest Speed 37 | 50 160 95 120 37 Average Speed 123 | 128 160 119 120 102 Slowest Speed 190 | 190 160 160 120 190 Overloaded Moves . | . . . . . Propulsion Burnouts . | . . . . . Robots Hopped . | . . . . . Cave-ins Triggered . | . . . . . Exploration Rate (%) 50 | 4 31 70 92 55 Regions Visited 4 Branch Regions 3 Pre-discovered Areas 1 | . . . . 1 Known Exits Taken . | . . . . . Unknown Exits Taken 4 | 1 1 1 1 . Scrap Searched 3 | . . 3 . . Spaces Dug . | . . . . . Terrain Destroyed . | . . . . . Melee . | . . . . . Projectile . | . . . . . AOE . | . . . . . Terrain Rammed . | . . . . . Walls Destroyed . | . . . . . Machines Disabled . | . . . . . Actions | -11 -10 -10 -10 -9 --------- Run | Yrd Mat Min Exi Min Total 1891 | 63 295 501 848 184 Wait 58 | . 37 21 . . Move 1703 | 44 210 431 848 170 Hop . | . . . . . Pick Up 26 | 12 7 5 . 2 Fast Attach 3 | . . 3 . . Attach 13 | 6 1 3 . 3 Detach . | . . . . . Swap 11 | 1 1 6 . 3 Drop 15 | . 5 10 . . Fire 61 | . 34 22 . 5 Melee . | . . . . . Ram . | . . . . . Kick 1 | . . . . 1 Crush . | . . . . . Escape Stasis . | . . . . . Rewire . | . . . . . Trap . | . . . . . Miscellaneous . | . . . . . Route ------- -11/Scrapyard -10/Materials (discovered 2 exits: [*Min x2]) -10/Mines -10/Exiles (discovered 2 exits: [*Min x2]) -9/Mines (discovered 1 exit: [*Mat]) History --------- Turn | Location | Event 11 | -11/Scrapyard | Discovered new exit (range 15) 77 | -11/Scrapyard | Entered Materials 314 | -10/Materials | Build established: Mutant 342 | -10/Materials | Discovered new exit (range 13) 432 | -10/Materials | Discovered new exit (range 9) 564 | -10/Materials | Entered Mines 881 | -10/Mines | Core integrity fell below 50% 1178 | -10/Mines | Deemed a non-threat by the Exiles lab entrance 1178 | -10/Mines | Discovered new exit (range 5) 1184 | -10/Mines | Entered Exiles 1208 | -10/Exiles | Discovered new exit (range 14) 1237 | -10/Exiles | Met 8R-AWN 1254 | -10/Exiles | Met EX-HEX 1288 | -10/Exiles | Met EX-BIN 1378 | -10/Exiles | Met EX-DEC 1444 | -10/Exiles | Discovered new exit (range 10) 1680 | -10/Exiles | Visited The Gauntlet 2202 | -10/Exiles | Entered Mines 2236 | -9/Mines | Met a Derelict bent on vengeance 2243 | -9/Mines | Learned 2 Materials zone layouts 2336 | -9/Mines | Learned Materials stockpile data 2348 | -9/Mines | Core integrity fell below 20% 2352 | -9/Mines | A weapon hastily lodged in a ceiling crevice suddenly fell to the ground 2365 | -9/Mines | Discovered new exit (range 15) 2365 | -9/Mines | Learned location of Zion (-7) 2401 | -9/Mines | Destroyed by G-34 Mercenary with Small Laser Last Messages --------------- rubble with a note attached: "In case of Swarmers." 02353_ Acquired Mak. Shrapnel Gun. 02365_ EXIT=FOUND 02365_ Acquired derelict log, extracted data. World map updated: -7/Zion. 02371_ 08-IZF(g) destroyed. 02371_ Flight Unit destroyed. 02371_ R-06 Scavenger collects Carbon-fiber Leg. 02374_ R-06 Scavenger suffers critical hit (Destroy). 02374_ S-10 Pest destroyed. 02374_ Switching to secondary target: S-10 Pest. 02374_ S-10 Pest destroyed. 02377_ K-01 Serf collects debris. 02377_ S-10 Pest destroyed. 02381_ K-01 Serf collects debris. 02383_ Flight Unit destroyed. 02383_ K-01 Serf collects debris. 02386_ Acquired Beamcaster. 02387_ K-01 Serf collects debris. 02401_ Acquired 11 matter. Map ----- +----------------------------------------------------+ | ?????????????????????????????????????????????????? | | ?????????????????????????????????????????????????? | | ?????????????????????????????????????????????????? | | ?????????????????????????????????????????????????? | | ?????????????????????????????????????????????????? | | ?????????????????????????????????????????????????? | | ?????????????????????????????????????????????????? | | ?????????????????????????????????????????????????? | | ?????????????????????????????????????????????????? | | ?????????????????????????????????????????????????? | | ?????????????????????????????????????????????????? | | ###??????????????????????????????????????????????? | | ####???????????????????????????????????????????? | | #???????????????????????????????????????????? | | #???????????????????????????????????????????? | | #???????????????????#???????????????????????? | | #??????????????????? ???????????????????????? | | #??????????????????# #??????????????????????? | | #??????????????????# #??????????????????????? | | #??????????????????# #??????????????????????? | | #??????????????????# #??????????????????????? | | #??????????????#???# #??????????????????????? | | #??????????????# ??# #??????????????????????? | | #?????????????## ## ##?????????????????????? | | #####?????????????# %% ##????????????????????? | | #?????????????????# k @ ##############???????? | | ####??????????????# ls k %[ ##??????? | | ##?????????????## g !%%[ #??????? | | #??????????????# u #########[% #????" ? | | #?????????????# ##???????## ##???"" ? | | ##?????????? #?????????### ##???? | | ##????????? """ ##???????????# #????""" " | | ####?????????? ? """ #???????#####?# #????""" " | | #?????????????? ?""" #???????## ### #??? """ " | | #?????????????????"" ???????## #### | | ##???????????????? ???????# """ " | | ##??????????????? #??????## """ " | | ##????????????? ????#### #### """ " | | #####?????????? ???## ## #??? | | #?????????????????# ###### ##???###### | | ## #?????????????????# ##????####?????????? | | ##### #?????????????????# #??????????????????? | | #???# #?????????????????# #######????????????? | | #???# ###???????????????# #????????????? | | #???# ##??????????????## ###### #????????????? | | #?### #???# ?????????####????# #????????????? | | ### #?## ???????????????# #????????????? | | ##?# #?????????????# #????????????? | | ## ##?## #????????????#*#??????? #???? | | ## ##??# ############# ### #???? | +----------------------------------------------------+ Best States ------------- Heat Dissipation 25 Energy Generation 10 Energy Capacity 125 Matter Stores 300 Matter Capacity 300 Sight Range 16 Terrain Scan Density 10 Armor Coverage 150 Weapon Shielding 33 Evasion (%) 62 Recoil Reduction 2 Item Schematics ----------------- None Robot Schematics ------------------ None Fabricated ------------ Nothing Alien Tech Used ----------------- None Achievements -------------- None Challenges ------------ None Game ------ Seed PulseMatterChip Manual? 0 Play Time 00:21:11 Cumulative 7.2 hours Start 2024.08.17 @ 17:28:13 End 2024.08.17 @ 17:47:14 Sessions 1 Manual Loads 0 Difficulty Rogue Special Mode None Game No. 13 Rogue 13 Adventurer 0 Explorer 0 Win Type - Total 0 Types 0/0/0/0/0/0/0/0/0 Lore% 8 Gallery% 11 Achievement% 12 Wizard Run 0 Options --------- Layout 2 ASCII 0 Keyboard 0 Movement Mouse Keybinds 0 Fullscreen 2 Font 20/SmallcapsGlow Map View 64x51 Zoom Use 0% Tactical HUD 1 Map Filters NONE Filters NONE Steam 1 RUN: 78d0759e-ba7f-4fbd-a70b-dfd92a1979db